[Event "*** SCC Grand Prix: Titled Tuesday Blitz"]
[Site "Chess.com"]
[Date "2020.07.14"]
[Round "4"]
[White "louis198"]
[Black "joksijoksi"]
[Result "0-1"]
[WhiteElo "2554"]
[BlackElo "2393"]
[TimeControl "180+1"]
[EndTime "10:41:06 PDT"]
[Termination "joksijoksi won by resignation"]

1. d4 {[%clk 0:03:00.9]} 1... e6 {[%clk 0:03:00.3]} 2. Bf4 {[%clk 0:03:00.2]}
2... d5 {[%clk 0:03:00.2]} 3. e3 {[%clk 0:02:59.7]} 3... c5 {[%clk 0:03:00.6]}
4. Nf3 {[%clk 0:02:58.2]} 4... Nc6 {[%clk 0:03:01.2]} 5. Nbd2 {[%clk 0:02:54.2]}
5... Bd6 {[%clk 0:03:01.2]} 6. Bg3 {[%clk 0:02:53.6]} 6... Nge7 {[%clk
0:03:00.6]} 7. c3 {[%clk 0:02:52.4]} 7... cxd4 {[%clk 0:02:55.1]} 8. exd4 {[%clk
0:02:52.2]} 8... O-O {[%clk 0:02:55.6]} 9. Bd3 {[%clk 0:02:51.8]} 9... f6 {[%clk
0:02:55.4]} 10. Bxd6 {[%clk 0:02:48.4]} 10... Qxd6 {[%clk 0:02:55]} 11. O-O
{[%clk 0:02:47.8]} 11... e5 {[%clk 0:02:53.4]} 12. c4 {[%clk 0:02:41.5]} 12...
Bg4 {[%clk 0:02:29.2]} 13. cxd5 {[%clk 0:02:40.2]} 13... Nxd4 {[%clk 0:02:29.3]}
14. Be4 {[%clk 0:02:25.2]} 14... Nxd5 {[%clk 0:02:18.6]} 15. h3 {[%clk
0:02:18.3]} 15... Bh5 {[%clk 0:01:59]} 16. g4 {[%clk 0:02:16.6]} 16... Nxf3+
{[%clk 0:01:53.8]} 17. Qxf3 {[%clk 0:02:14.7]} 17... Bf7 {[%clk 0:01:52.8]} 18.
Rfd1 {[%clk 0:02:12.2]} 18... Nf4 {[%clk 0:01:48.3]} 19. Bxb7 {[%clk 0:01:59.2]}
19... Rab8 {[%clk 0:01:47.9]} 20. Nb3 {[%clk 0:01:59.2]} 20... Qb4 {[%clk
0:01:34.4]} 21. Rd7 {[%clk 0:01:42.7]} 21... Be6 {[%clk 0:01:27.2]} 22. Rc7
{[%clk 0:01:35.5]} 22... Nxh3+ {[%clk 0:01:08.4]} 23. Kh2 {[%clk 0:01:07.9]}
23... Ng5 {[%clk 0:00:53.8]} 24. Qg2 {[%clk 0:00:58.1]} 24... Qf4+ {[%clk
0:00:30.9]} 25. Qg3 {[%clk 0:00:54.6]} 25... Qxg4 {[%clk 0:00:25.8]} 26. Qxg4
{[%clk 0:00:51.1]} 26... Bxg4 {[%clk 0:00:26.7]} 27. Bd5+ {[%clk 0:00:50.9]}
27... Kh8 {[%clk 0:00:24.9]} 28. Rxa7 {[%clk 0:00:50.9]} 28... e4 {[%clk
0:00:20.2]} 29. Kg3 {[%clk 0:00:50.6]} 29... f5 {[%clk 0:00:15.4]} 30. Kf4
{[%clk 0:00:50.6]} 30... Nh3+ {[%clk 0:00:14.1]} 31. Kg3 {[%clk 0:00:48.9]}
31... h5 {[%clk 0:00:08.6]} 32. Rh1 {[%clk 0:00:46.1]} 32... f4+ {[%clk
0:00:04.4]} 33. Kh2 {[%clk 0:00:45.9]} 33... Nxf2 {[%clk 0:00:03.6]} 34. Rc1
{[%clk 0:00:39.6]} 34... e3 {[%clk 0:00:04]} 35. Rcc7 {[%clk 0:00:36.8]} 35...
Rg8 {[%clk 0:00:03.2]} 36. Bxg8 {[%clk 0:00:34.8]} 36... Rxg8 {[%clk 0:00:04.1]}
37. Nd4 {[%clk 0:00:32.7]} 37... Nd3 {[%clk 0:00:03.2]} 38. Rf7 {[%clk
0:00:29.5]} 38... f3 {[%clk 0:00:02.9]} 39. Rae7 {[%clk 0:00:28.7]} 39... e2
{[%clk 0:00:02.8]} 40. Nxf3 {[%clk 0:00:28.6]} 40... Bxf3 {[%clk 0:00:02.7]} 41.
Rxf3 {[%clk 0:00:29.2]} 41... e1=Q {[%clk 0:00:03.1]} 42. Rxe1 {[%clk
0:00:29.4]} 42... Nxe1 {[%clk 0:00:04]} 43. Re3 {[%clk 0:00:26.3]} 43... Nc2
{[%clk 0:00:04.3]} 44. Rc3 {[%clk 0:00:26.1]} 44... Nb4 {[%clk 0:00:02.8]} 45.
a3 {[%clk 0:00:26.4]} 45... Nd5 {[%clk 0:00:02.9]} 46. Rc5 {[%clk 0:00:26.6]}
46... Nf6 {[%clk 0:00:03]} 47. b4 {[%clk 0:00:26.7]} 47... Ra8 {[%clk
0:00:03.2]} 48. Rc3 {[%clk 0:00:26.8]} 48... g5 {[%clk 0:00:03.1]} 49. b5 {[%clk
0:00:25.2]} 49... Nd7 {[%clk 0:00:01.8]} 50. Rc7 {[%clk 0:00:24.2]} 50... Nb6
{[%clk 0:00:02]} 51. Rb7 {[%clk 0:00:24.6]} 51... Na4 {[%clk 0:00:02.2]} 52. Kg3
{[%clk 0:00:23.4]} 52... Ra5 {[%clk 0:00:01.4]} 53. Kf3 {[%clk 0:00:22.8]} 53...
Nc3 {[%clk 0:00:01.7]} 54. b6 {[%clk 0:00:22.4]} 54... Rxa3 {[%clk 0:00:01.7]}
55. Rb8+ {[%clk 0:00:20.6]} 55... Kg7 {[%clk 0:00:02.3]} 56. b7 {[%clk 0:00:21]}
56... Rb3 {[%clk 0:00:02.6]} 57. Ke3 {[%clk 0:00:21.5]} 57... Nd5+ {[%clk
0:00:01.9]} 58. Kd4 {[%clk 0:00:21.8]} 58... Nf6 {[%clk 0:00:02.6]} 59. Kc4
{[%clk 0:00:22.1]} 59... Rb1 {[%clk 0:00:03.2]} 60. Kc5 {[%clk 0:00:21.6]} 60...
g4 {[%clk 0:00:03.7]} 61. Kc6 {[%clk 0:00:21.3]} 61... h4 {[%clk 0:00:04.1]} 62.
Ra8 {[%clk 0:00:20.5]} 62... Rxb7 {[%clk 0:00:04]} 63. Kxb7 {[%clk 0:00:20.4]}
63... g3 {[%clk 0:00:04.1]} 64. Ra2 {[%clk 0:00:20.7]} 64... h3 {[%clk
0:00:04.1]} 65. Ra3 {[%clk 0:00:21.2]} 65... g2 {[%clk 0:00:04.2]} 66. Rg3+
{[%clk 0:00:20.1]} 66... Kf7 {[%clk 0:00:04.3]} 67. Rxh3 {[%clk 0:00:20.6]}
67... g1=Q {[%clk 0:00:04.2]} 68. Rc3 {[%clk 0:00:21.1]} 68... Qg2+ {[%clk
0:00:04]} 69. Kb6 {[%clk 0:00:20.9]} 69... Nd5+ {[%clk 0:00:04.2]} 70. Kc5
{[%clk 0:00:20.4]} 70... Nxc3 {[%clk 0:00:05.1]} 71. Kd4 {[%clk 0:00:19.8]}
71... Ne2+ {[%clk 0:00:06]} 72. Ke3 {[%clk 0:00:20]} 72... Ng3 {[%clk
0:00:06.9]} 73. Kf4 {[%clk 0:00:20]} 73... Kf6 {[%clk 0:00:07.8]} 74. Kg4 {[%clk
0:00:20.2]} 74... Qe4+ {[%clk 0:00:08]} 75. Kh3 {[%clk 0:00:19.9]} 75... Nf5
{[%clk 0:00:07.7]} 76. Kh2 {[%clk 0:00:19.6]} 76... Nd6 {[%clk 0:00:08.6]} 77.
Kg3 {[%clk 0:00:19.8]} 77... Kf5 {[%clk 0:00:08.8]} 78. Kh3 {[%clk 0:00:19.7]}
78... Qg4+ {[%clk 0:00:08.9]} 79. Kh2 {[%clk 0:00:19.9]} 79... Kf4 {[%clk
0:00:09.5]} 80. Kh1 {[%clk 0:00:20.3]} 80... Kf3 {[%clk 0:00:10.2]} 0-1

[Event "*** SCC Grand Prix: Titled Tuesday Blitz"]
[Site "Chess.com"]
[Date "2020.07.14"]
[Round "4"]
[White "WelshTiger"]
[Black "cottage_cheese"]
[Result "1-0"]
[WhiteElo "2373"]
[BlackElo "2155"]
[TimeControl "180+1"]
[EndTime "10:41:10 PDT"]
[Termination "WelshTiger won by resignation"]

1. e4 {[%clk 0:03:00.9]} 1... e6 {[%clk 0:02:50.6]} 2. d4 {[%clk 0:03:00.2]}
2... d5 {[%clk 0:02:51]} 3. Nd2 {[%clk 0:02:59.9]} 3... h6 {[%clk 0:02:49.1]} 4.
c3 {[%clk 0:02:56.1]} 4... c5 {[%clk 0:02:45]} 5. exd5 {[%clk 0:02:55.3]} 5...
exd5 {[%clk 0:02:41.8]} 6. Ngf3 {[%clk 0:02:55]} 6... Nf6 {[%clk 0:02:40.4]} 7.
Bb5+ {[%clk 0:02:54.8]} 7... Bd7 {[%clk 0:02:33.2]} 8. Bxd7+ {[%clk 0:02:50.9]}
8... Nbxd7 {[%clk 0:02:29.1]} 9. O-O {[%clk 0:02:51.5]} 9... Be7 {[%clk
0:02:26.4]} 10. dxc5 {[%clk 0:02:50.4]} 10... Nxc5 {[%clk 0:02:25.9]} 11. Nd4
{[%clk 0:02:49.5]} 11... O-O {[%clk 0:02:08.6]} 12. Qf3 {[%clk 0:02:46.7]} 12...
Nce4 {[%clk 0:02:04.6]} 13. N2b3 {[%clk 0:02:43.7]} 13... Re8 {[%clk 0:02:01.6]}
14. Bf4 {[%clk 0:02:39.1]} 14... Qd7 {[%clk 0:01:57.6]} 15. Rad1 {[%clk
0:02:36.7]} 15... Rad8 {[%clk 0:01:53.6]} 16. h3 {[%clk 0:02:36.2]} 16... Bf8
{[%clk 0:01:46]} 17. Rd3 {[%clk 0:02:31.8]} 17... Qa4 {[%clk 0:01:43.4]} 18. a3
{[%clk 0:02:23.7]} 18... Qc4 {[%clk 0:01:25.5]} 19. Rfd1 {[%clk 0:02:20.9]}
19... a6 {[%clk 0:01:08.8]} 20. Na5 {[%clk 0:02:15.2]} 20... Qc8 {[%clk
0:01:07.7]} 21. Nab3 {[%clk 0:01:38.1]} 21... b6 {[%clk 0:01:07.2]} 22. Nd2
{[%clk 0:01:35]} 22... Nc5 {[%clk 0:01:06.5]} 23. Re3 {[%clk 0:01:34.8]} 23...
Nfe4 {[%clk 0:00:59.6]} 24. Nf1 {[%clk 0:01:29.2]} 24... Ne6 {[%clk 0:00:54.7]}
25. Bh2 {[%clk 0:01:26.6]} 25... N6g5 {[%clk 0:00:53.8]} 26. Qg4 {[%clk
0:01:22.6]} 26... Qxg4 {[%clk 0:00:50.3]} 27. hxg4 {[%clk 0:01:22.7]} 27... Bc5
{[%clk 0:00:48.7]} 28. Red3 {[%clk 0:01:00.9]} 28... Ne6 {[%clk 0:00:47.8]} 29.
Ne3 {[%clk 0:00:49.6]} 29... g6 {[%clk 0:00:30.9]} 30. Nxe6 {[%clk 0:00:40.9]}
30... fxe6 {[%clk 0:00:29.8]} 31. f3 {[%clk 0:00:38.9]} 31... Nd6 {[%clk
0:00:27.9]} 32. Kf1 {[%clk 0:00:36.5]} 32... Bxe3 {[%clk 0:00:26.9]} 33. Rxe3
{[%clk 0:00:36.8]} 33... Nc4 {[%clk 0:00:27.1]} 34. Re2 {[%clk 0:00:37.3]} 34...
Kf7 {[%clk 0:00:25.7]} 35. Bg1 {[%clk 0:00:36.6]} 35... e5 {[%clk 0:00:23.2]}
36. b3 {[%clk 0:00:35.7]} 36... Nxa3 {[%clk 0:00:23]} 37. Bxb6 {[%clk 0:00:34]}
37... Rb8 {[%clk 0:00:22.1]} 38. Bc5 {[%clk 0:00:31.6]} 38... Nb5 {[%clk
0:00:19.3]} 39. Rxd5 {[%clk 0:00:28.4]} 39... Nxc3 {[%clk 0:00:18.5]} 40. Rd7+
{[%clk 0:00:28.7]} 40... Ke6 {[%clk 0:00:18]} 41. Rd6+ {[%clk 0:00:28.8]} 41...
Kf7 {[%clk 0:00:17.8]} 42. Rc2 {[%clk 0:00:26.3]} 42... Rxb3 {[%clk 0:00:17.8]}
43. Rxa6 {[%clk 0:00:24.4]} 43... Rb1+ {[%clk 0:00:17.5]} 44. Kf2 {[%clk
0:00:24]} 44... Nd1+ {[%clk 0:00:15.1]} 45. Kg3 {[%clk 0:00:24.3]} 45... e4
{[%clk 0:00:14.1]} 46. Ra7+ {[%clk 0:00:21.8]} 46... Ke6 {[%clk 0:00:10.7]} 47.
fxe4 {[%clk 0:00:21.1]} 47... Rb3+ {[%clk 0:00:08.3]} 48. Kh2 {[%clk 0:00:19.8]}
48... Ne3 {[%clk 0:00:05.5]} 49. Bxe3 {[%clk 0:00:18.3]} 49... Rxe3 {[%clk
0:00:06.4]} 50. Rc6+ {[%clk 0:00:18.2]} 50... Ke5 {[%clk 0:00:06.8]} 51. Rxg6
{[%clk 0:00:17.6]} 51... Rxe4 {[%clk 0:00:06.3]} 52. Ra5+ {[%clk 0:00:15.8]}
52... Kf4 {[%clk 0:00:05.5]} 53. Rf5+ {[%clk 0:00:15.4]} 53... Ke3 {[%clk
0:00:05.3]} 54. Rxh6 {[%clk 0:00:12.2]} 54... Rxg4 {[%clk 0:00:05]} 55. Rf3+
{[%clk 0:00:11.7]} 55... Ke2 {[%clk 0:00:04.7]} 56. Rhf6 {[%clk 0:00:11.1]}
56... Reg8 {[%clk 0:00:05]} 57. Rf2+ {[%clk 0:00:11.3]} 57... Ke3 {[%clk
0:00:05.6]} 58. R6f3+ {[%clk 0:00:11.3]} 58... Ke4 {[%clk 0:00:06.1]} 59. Re2+
{[%clk 0:00:11.7]} 59... Kd4 {[%clk 0:00:06]} 60. Rf7 {[%clk 0:00:11.7]} 60...
Rh8+ {[%clk 0:00:05.2]} 61. Kg1 {[%clk 0:00:11.4]} 61... Rhg8 {[%clk 0:00:06.1]}
62. Rd7+ {[%clk 0:00:10.7]} 62... Kc5 {[%clk 0:00:06.7]} 63. Rc2+ {[%clk
0:00:10.3]} 63... Rc4 {[%clk 0:00:06.7]} 64. Rxc4+ {[%clk 0:00:09.7]} 64... Kxc4
{[%clk 0:00:07.6]} 65. Kh2 {[%clk 0:00:10]} 65... Kc5 {[%clk 0:00:07.8]} 66. Kh3
{[%clk 0:00:09.7]} 66... Kc6 {[%clk 0:00:08.4]} 67. Rd1 {[%clk 0:00:09.8]} 67...
Kc7 {[%clk 0:00:08.8]} 68. g4 {[%clk 0:00:10.1]} 68... Rh8+ {[%clk 0:00:08]} 69.
Kg3 {[%clk 0:00:10.4]} 69... Rg8 {[%clk 0:00:07.9]} 70. Kf4 {[%clk 0:00:10.6]}
70... Rf8+ {[%clk 0:00:08.2]} 71. Kg5 {[%clk 0:00:11.1]} 71... Rg8+ {[%clk
0:00:08.2]} 72. Kh4 {[%clk 0:00:10.9]} 72... Rf8 {[%clk 0:00:06.8]} 73. g5
{[%clk 0:00:10.3]} 73... Rf2 {[%clk 0:00:06.3]} 74. Kh5 {[%clk 0:00:10.2]} 74...
Rh2+ {[%clk 0:00:06.4]} 75. Kg6 {[%clk 0:00:10.6]} 75... Rg2 {[%clk 0:00:06.5]}
76. Kf6 {[%clk 0:00:10.8]} 76... Rd2 {[%clk 0:00:07.2]} 77. Rxd2 {[%clk
0:00:10]} 1-0

[Event "*** SCC Grand Prix: Titled Tuesday Blitz"]
[Site "Chess.com"]
[Date "2020.07.14"]
[Round "4"]
[White "Schandenfreude"]
[Black "Doraemon7"]
[Result "0-1"]
[WhiteElo "2453"]
[BlackElo "2640"]
[TimeControl "180+1"]
[EndTime "10:41:13 PDT"]
[Termination "Doraemon7 won on time"]

1. Nf3 {[%clk 0:03:00.9]} 1... d5 {[%clk 0:02:53]} 2. e3 {[%clk 0:02:59.1]} 2...
Nf6 {[%clk 0:02:52.5]} 3. c4 {[%clk 0:02:58.9]} 3... c6 {[%clk 0:02:52.7]} 4.
Nc3 {[%clk 0:02:58]} 4... e6 {[%clk 0:02:52.3]} 5. Qc2 {[%clk 0:02:51.6]} 5...
Bd6 {[%clk 0:02:51.8]} 6. b3 {[%clk 0:02:51.3]} 6... O-O {[%clk 0:02:52.1]} 7.
Bb2 {[%clk 0:02:50.2]} 7... e5 {[%clk 0:02:48.8]} 8. cxd5 {[%clk 0:02:36.2]}
8... cxd5 {[%clk 0:02:49.7]} 9. Nb5 {[%clk 0:02:35.3]} 9... Nc6 {[%clk
0:02:50.2]} 10. Nxd6 {[%clk 0:02:30.6]} 10... Qxd6 {[%clk 0:02:51.1]} 11. Be2
{[%clk 0:02:28.9]} 11... Bg4 {[%clk 0:02:41]} 12. h3 {[%clk 0:02:21.5]} 12...
Bh5 {[%clk 0:02:37.2]} 13. Qf5 {[%clk 0:02:11.3]} 13... Rfe8 {[%clk 0:02:26]}
14. a3 {[%clk 0:02:02.2]} 14... Bg6 {[%clk 0:02:22.3]} 15. Qg5 {[%clk
0:02:01.4]} 15... h6 {[%clk 0:02:20.1]} 16. Qh4 {[%clk 0:01:59.4]} 16... d4
{[%clk 0:02:08.6]} 17. Bc4 {[%clk 0:01:42.7]} 17... Ne7 {[%clk 0:01:57.6]} 18.
g4 {[%clk 0:01:30.4]} 18... Qc6 {[%clk 0:01:34.5]} 19. Qg3 {[%clk 0:01:11.5]}
19... b5 {[%clk 0:01:22]} 20. Be2 {[%clk 0:00:46.3]} 20... Ne4 {[%clk
0:00:50.3]} 21. Qxe5 {[%clk 0:00:36]} 21... Nxd2 {[%clk 0:00:40.2]} 22. Qxd4
{[%clk 0:00:30.3]} 22... f6 {[%clk 0:00:22.1]} 23. Qxd2 {[%clk 0:00:29.7]} 23...
Be4 {[%clk 0:00:22.1]} 24. Qd1 {[%clk 0:00:23.8]} 24... Rad8 {[%clk 0:00:21.3]}
25. Bd4 {[%clk 0:00:24]} 25... Nd5 {[%clk 0:00:19.4]} 26. O-O {[%clk 0:00:22.7]}
26... h5 {[%clk 0:00:17.4]} 27. Nd2 {[%clk 0:00:21.2]} 27... Bh7 {[%clk
0:00:16.4]} 28. Bf3 {[%clk 0:00:20.8]} 28... Qe6 {[%clk 0:00:16.5]} 29. Rc1
{[%clk 0:00:19.6]} 29... Nf4 {[%clk 0:00:14.8]} 30. exf4 {[%clk 0:00:16.4]}
30... Rxd4 {[%clk 0:00:15.3]} 31. Re1 {[%clk 0:00:15.1]} 31... Qd7 {[%clk
0:00:12.2]} 32. Rxe8+ {[%clk 0:00:14.7]} 32... Qxe8 {[%clk 0:00:13.1]} 33. Qe1
{[%clk 0:00:10.7]} 33... Qxe1+ {[%clk 0:00:12.4]} 34. Rxe1 {[%clk 0:00:11.4]}
34... Rxd2 {[%clk 0:00:13.3]} 35. Re7 {[%clk 0:00:09.8]} 35... Rd3 {[%clk
0:00:11.9]} 36. Kg2 {[%clk 0:00:09.5]} 36... hxg4 {[%clk 0:00:11]} 37. hxg4
{[%clk 0:00:10.4]} 37... a5 {[%clk 0:00:11.3]} 38. b4 {[%clk 0:00:09.6]} 38...
Rxa3 {[%clk 0:00:10.2]} 39. bxa5 {[%clk 0:00:09.9]} 39... Rxa5 {[%clk
0:00:11.1]} 40. Bd5+ {[%clk 0:00:09.3]} 40... Kf8 {[%clk 0:00:10.4]} 41. Rf7+
{[%clk 0:00:09.6]} 41... Ke8 {[%clk 0:00:10.6]} 42. Rxg7 {[%clk 0:00:09.8]}
42... Bd3 {[%clk 0:00:11.2]} 43. Rg8+ {[%clk 0:00:06.2]} 43... Ke7 {[%clk
0:00:11.6]} 44. g5 {[%clk 0:00:06]} 44... fxg5 {[%clk 0:00:11.4]} 45. fxg5
{[%clk 0:00:06.9]} 45... b4 {[%clk 0:00:12.3]} 46. Bf3 {[%clk 0:00:06.1]} 46...
Kf7 {[%clk 0:00:11.9]} 47. Rb8 {[%clk 0:00:04.1]} 47... Rxg5+ {[%clk 0:00:10.7]}
48. Kh3 {[%clk 0:00:04.3]} 48... Rf5 {[%clk 0:00:10]} 49. Bg4 {[%clk 0:00:02.4]}
49... Rf4 {[%clk 0:00:10.4]} 50. Kg3 {[%clk 0:00:02.6]} 50... Rc4 {[%clk
0:00:09.7]} 51. Bf3 {[%clk 0:00:01.9]} 51... Kf6 {[%clk 0:00:08]} 52. Rb6+
{[%clk 0:00:02.4]} 52... Ke5 {[%clk 0:00:07.6]} 53. Rb5+ {[%clk 0:00:02.3]}
53... Kf6 {[%clk 0:00:06.5]} 54. Rd5 {[%clk 0:00:03.2]} 54... Bf5 {[%clk
0:00:05.4]} 55. Rd6+ {[%clk 0:00:03.2]} 55... Kg5 {[%clk 0:00:05.9]} 56. Rb6
{[%clk 0:00:03.5]} 56... Rd4 {[%clk 0:00:04.8]} 57. Rb5 {[%clk 0:00:03.7]} 57...
Kf6 {[%clk 0:00:04.8]} 58. Kg2 {[%clk 0:00:03]} 58... Be6 {[%clk 0:00:04.4]} 59.
Rb6 {[%clk 0:00:02.6]} 59... b3 {[%clk 0:00:03.9]} 60. Kg3 {[%clk 0:00:02.9]}
60... Ke5 {[%clk 0:00:04.1]} 61. Be2 {[%clk 0:00:03.1]} 61... Bd5 {[%clk
0:00:04]} 62. Rb5 {[%clk 0:00:02.9]} 62... Kd6 {[%clk 0:00:02.6]} 63. Rb6+
{[%clk 0:00:02.7]} 63... Kc5 {[%clk 0:00:02.8]} 64. Rb8 {[%clk 0:00:03.2]} 64...
Rd2 {[%clk 0:00:02.8]} 65. Bf3 {[%clk 0:00:03.1]} 65... Kd4 {[%clk 0:00:03.7]}
66. Bxd5 {[%clk 0:00:01.9]} 66... b2 {[%clk 0:00:04.4]} 0-1

[Event "*** SCC Grand Prix: Titled Tuesday Blitz"]
[Site "Chess.com"]
[Date "2020.07.14"]
[Round "4"]
[White "Tashik"]
[Black "hongnhung1234"]
[Result "1/2-1/2"]
[WhiteElo "2412"]
[BlackElo "2243"]
[TimeControl "180+1"]
[EndTime "10:41:15 PDT"]
[Termination "Game drawn by stalemate"]

1. c4 {[%clk 0:03:00.9]} 1... Nf6 {[%clk 0:02:48.2]} 2. Nc3 {[%clk 0:03:00.5]}
2... g6 {[%clk 0:02:47.4]} 3. e4 {[%clk 0:03:00.8]} 3... d6 {[%clk 0:02:45.7]}
4. d4 {[%clk 0:03:00.5]} 4... Bg7 {[%clk 0:02:46.2]} 5. f4 {[%clk 0:03:00.6]}
5... O-O {[%clk 0:02:46.2]} 6. Nf3 {[%clk 0:03:01.1]} 6... Nbd7 {[%clk
0:02:45.7]} 7. Bd3 {[%clk 0:02:58.3]} 7... c5 {[%clk 0:02:45.8]} 8. d5 {[%clk
0:02:57.9]} 8... a6 {[%clk 0:02:42.2]} 9. a4 {[%clk 0:02:57.2]} 9... Rb8 {[%clk
0:02:38.8]} 10. O-O {[%clk 0:02:56.3]} 10... e6 {[%clk 0:02:36.2]} 11. Re1
{[%clk 0:02:51.8]} 11... exd5 {[%clk 0:02:34.6]} 12. cxd5 {[%clk 0:02:52.7]}
12... Re8 {[%clk 0:02:33.4]} 13. h3 {[%clk 0:02:51.8]} 13... c4 {[%clk
0:02:27.9]} 14. Bxc4 {[%clk 0:02:49.3]} 14... Nc5 {[%clk 0:02:27.5]} 15. e5
{[%clk 0:02:46.8]} 15... Nh5 {[%clk 0:02:15.8]} 16. Be3 {[%clk 0:02:14.2]} 16...
Nd7 {[%clk 0:01:54.3]} 17. exd6 {[%clk 0:01:51.6]} 17... Ndf6 {[%clk 0:01:47.4]}
18. Ba7 {[%clk 0:01:33.8]} 18... Ra8 {[%clk 0:01:35.6]} 19. Bc5 {[%clk
0:01:33.1]} 19... Nxf4 {[%clk 0:01:29.9]} 20. Qd2 {[%clk 0:01:27.8]} 20... N4h5
{[%clk 0:01:11.2]} 21. a5 {[%clk 0:01:27.5]} 21... Ng3 {[%clk 0:01:06.9]} 22.
Qf4 {[%clk 0:01:11.9]} 22... Nfh5 {[%clk 0:00:42]} 23. Qh4 {[%clk 0:01:02.7]}
23... Bf6 {[%clk 0:00:37]} 24. Rxe8+ {[%clk 0:00:47.2]} 24... Qxe8 {[%clk
0:00:37.9]} 25. Ng5 {[%clk 0:00:47.6]} 25... h6 {[%clk 0:00:28.9]} 26. Nce4
{[%clk 0:00:39.5]} 26... hxg5 {[%clk 0:00:16.9]} 27. Nxf6+ {[%clk 0:00:39.1]}
27... Nxf6 {[%clk 0:00:17.4]} 28. Qxg3 {[%clk 0:00:39.7]} 28... Ne4 {[%clk
0:00:16.1]} 29. Qe3 {[%clk 0:00:38.4]} 29... Bf5 {[%clk 0:00:15.7]} 30. Ba3
{[%clk 0:00:28.7]} 30... Rc8 {[%clk 0:00:13.8]} 31. b3 {[%clk 0:00:29]} 31...
Qd7 {[%clk 0:00:12.3]} 32. g4 {[%clk 0:00:24.7]} 32... Bxg4 {[%clk 0:00:11.5]}
33. Qxe4 {[%clk 0:00:22.8]} 33... Bxh3 {[%clk 0:00:08.8]} 34. Re1 {[%clk
0:00:18.7]} 34... Kh7 {[%clk 0:00:07.3]} 35. Re3 {[%clk 0:00:15.3]} 35... Bf5
{[%clk 0:00:05.7]} 36. Qh1+ {[%clk 0:00:14.2]} 36... Kg8 {[%clk 0:00:04.5]} 37.
Bb2 {[%clk 0:00:14.4]} 37... f6 {[%clk 0:00:04.5]} 38. Bxf6 {[%clk 0:00:14.2]}
38... Qh7 {[%clk 0:00:05]} 39. Qxh7+ {[%clk 0:00:13.5]} 39... Kxh7 {[%clk
0:00:05.9]} 40. Re7+ {[%clk 0:00:12.8]} 40... Kh6 {[%clk 0:00:05.7]} 41. d7
{[%clk 0:00:12.6]} 41... Rd8 {[%clk 0:00:05.5]} 42. Rh7+ {[%clk 0:00:10.5]}
42... Kxh7 {[%clk 0:00:05.8]} 43. Bxd8 {[%clk 0:00:11.4]} 43... Bxd7 {[%clk
0:00:05.7]} 44. Bxg5 {[%clk 0:00:12]} 44... Kg7 {[%clk 0:00:06]} 45. Kf2 {[%clk
0:00:12.2]} 45... Kf7 {[%clk 0:00:06.4]} 46. Ke3 {[%clk 0:00:12.6]} 46... Ke8
{[%clk 0:00:06.5]} 47. d6 {[%clk 0:00:12.1]} 47... Kf8 {[%clk 0:00:05.8]} 48.
Kf4 {[%clk 0:00:12.1]} 48... Ke8 {[%clk 0:00:06.3]} 49. Ke5 {[%clk 0:00:12.6]}
49... Bf5 {[%clk 0:00:06.8]} 50. Kf6 {[%clk 0:00:11.6]} 50... Kd7 {[%clk
0:00:06.3]} 51. Bf4 {[%clk 0:00:12.2]} 51... Kc6 {[%clk 0:00:06.3]} 52. Bf7
{[%clk 0:00:11.3]} 52... Bc2 {[%clk 0:00:06]} 53. Ke7 {[%clk 0:00:09.8]} 53...
Bf5 {[%clk 0:00:04.9]} 54. Be8+ {[%clk 0:00:08.6]} 54... Kc5 {[%clk 0:00:05.3]}
55. d7 {[%clk 0:00:08.9]} 55... Bxd7 {[%clk 0:00:05.3]} 56. Bxd7 {[%clk
0:00:09.8]} 56... g5 {[%clk 0:00:05.9]} 57. Bxg5 {[%clk 0:00:09.7]} 57... Kb4
{[%clk 0:00:06.2]} 58. Bd2+ {[%clk 0:00:08.8]} 58... Kxb3 {[%clk 0:00:06.3]} 59.
Kd6 {[%clk 0:00:09.4]} 59... Kc4 {[%clk 0:00:05.5]} 60. Kc7 {[%clk 0:00:08.4]}
60... b5 {[%clk 0:00:01.9]} 61. axb6 {[%clk 0:00:07.9]} 61... a5 {[%clk
0:00:02.8]} 62. b7 {[%clk 0:00:08.3]} 62... Kb3 {[%clk 0:00:03.7]} 63. b8=Q+
{[%clk 0:00:08.2]} 63... Kc4 {[%clk 0:00:04.6]} 64. Qb5+ {[%clk 0:00:07.9]}
64... Kd4 {[%clk 0:00:04.4]} 65. Qxa5 {[%clk 0:00:06.3]} 65... Kd3 {[%clk
0:00:05.3]} 66. Qd5+ {[%clk 0:00:05.8]} 66... Kc2 {[%clk 0:00:06.2]} 67. Qc4+
{[%clk 0:00:05.7]} 67... Kd1 {[%clk 0:00:07.1]} 68. Kd6 {[%clk 0:00:04.9]} 68...
Kxd2 {[%clk 0:00:06.6]} 69. Qd4+ {[%clk 0:00:04.9]} 69... Ke1 {[%clk 0:00:06.6]}
70. Kc5 {[%clk 0:00:05.8]} 70... Ke2 {[%clk 0:00:07.5]} 71. Kc4 {[%clk 0:00:06]}
71... Ke1 {[%clk 0:00:08.4]} 72. Qd3 {[%clk 0:00:06]} 72... Kf2 {[%clk
0:00:08.3]} 73. Kd4 {[%clk 0:00:05.1]} 73... Kg2 {[%clk 0:00:08.4]} 74. Qe3
{[%clk 0:00:04.9]} 74... Kf1 {[%clk 0:00:08.6]} 75. Bb5+ {[%clk 0:00:04.3]}
75... Kg2 {[%clk 0:00:08.7]} 76. Ke4 {[%clk 0:00:03.8]} 76... Kh2 {[%clk
0:00:08]} 77. Qf2+ {[%clk 0:00:03.7]} 77... Kh1 {[%clk 0:00:07.8]} 78. Bc4
{[%clk 0:00:02.9]} 1/2-1/2